[Event "WJCC U20 Open 2019"]
[Site "New Delhi"]
[Date "2019.10.17"]
[Round "4.30"]
[White "Wagh Suyog"]
[Black "Dobrovoljc, Vid"]
[Result "1/2-1/2"]
[ECO "A16"]
[WhiteElo "2229"]
[BlackElo "2389"]
[Annotator "NA"]
[PlyCount "106"]
[EventDate "2019.10.15"]
[EventType "swiss"]
[EventCountry "IND"]
[SourceTitle "playchess.com"]
[Source "ChessBase"]
[SourceQuality "1"]
[TimeControl "40/5400+30:1800+30"]

1. c4 {[%emt 0:00:00]} Nf6 {[%emt 0:01:32]} 2. Nc3 {[%emt 0:00:00]} g6 {[%emt 0:03:01]} 3. g3 {[%emt 0:01:25]} Bg7 {[%emt 0:00:07]} 4. Bg2 {[%emt 0:00:44]} d6 {[%emt 0:00:12]} 5. Rb1 {[%emt 0:02:35]} a5 {[%emt 0:00:50]} 6. Nf3 {[%emt 0:00:53]} O-O {[%emt 0:01:21]} 7. O-O {[%emt 0:00:24]} e5 {[%emt 0:00:34]} 8. d3 {[%emt 0:00:03]} h6 {[%emt 0:05:10]} 9. a3 {[%emt 0:00:12]} Re8 {[%emt 0:01:39]} 10. Nd2 {[%emt 0:02:01]} c6 {[%emt 0:05:21]} 11. b4 {[%emt 0:08:54]} axb4 {[%emt 0:03:04]} 12. axb4 {[%emt 0:01:16]} d5 {[%emt 0:00:38]} 13. b5 {[%emt 0:01:56]} Be6 {[%emt 0:05:46]} 14. Bb2 {[%emt 0:23:40]} Nbd7 {[%emt 0:07:14]} 15. Qc2 {[%emt 0:04:17]} Rc8 {[%emt 0:06:27]} 16. bxc6 {[%emt 0:07:17]} bxc6 {[%emt 0:00:23]} 17. Ba3 {[%emt 0:00:25]} Qc7 {[%emt 0:04:35]} 18. Rfc1 {[%emt 0:02:49]} Qa7 {[%emt 0:12:57]} 19. Ra1 {[%emt 0:09:49]} dxc4 {[%emt 0:03:49]} 20. Nce4 {[%emt 0:12:43]} cxd3 {[%emt 0:01:35]} 21. exd3 {[%emt 0:00:17]} Nxe4 {[%emt 0:04:44]} 22. Nxe4 {[%emt 0:00:46]} Qd4 {[%emt 0:09:53]} 23. Bb2 {[%emt 0:01:57]} Qb4 {[%emt 0:00:13]} 24. Ba3 {[%emt 0:00:11]} Qd4 {[%emt 0:00:05]} 25. Nd6 {[%emt 0:01:25]} c5 {[%emt 0:00:07]} 26. Nxe8 {[%emt 0:01:47]} Rxe8 {[%emt 0:00:03]} 27. Bb2 {[%emt 0:01:31]} Qd6 {[%emt 0:00:34]} 28. Ra8 {[%emt 0:00:24]} Rxa8 {[%emt 0:00:07]} 29. Bxa8 {[%emt 0:00:01]} Kh7 {[%emt 0:00:17]} 30. Bg2 {[%emt 0:00:42]} Bf6 {[%emt 0:01:43]} 31. Re1 {[%emt 0:02:04]} h5 {[%emt 0:01:05]} 32. h4 {[%emt 0:00:04]} Qa6 {[%emt 0:01:37]} 33. Bf1 {[%emt 0:03:16]} Qd6 {[%emt 0:00:56]} 34. Ba3 {[%emt 0:02:05]} Bd8 {[%emt 0:03:42]} 35. Rc1 {[%emt 0:01:25]} Bb6 {[%emt 0:00:58]} 36. Kh2 {[%emt 0:00:31]} Bf5 {[%emt 0:00:18]} 37. Qc4 {[%emt 0:01:57]} Qf6 {[%emt 0:00:35]} 38. Bg2 {[%emt 0:03:21]} Bg4 {[%emt 0:01:47]} 39. Qc2 {[%emt 0:00:31]} Kg8 {[%emt 0:01:06]} 40. Qd2 {[%emt 0:03:45]} Qd6 {[%emt 0:02:13]} 41. Qc2 {[%emt 0:05:37]} Bf5 {[%emt 0:02:25]} 42. Be4 {[%emt 0:00:38]} Bg4 {[%emt 0:00:29]} 43. Rb1 {[%emt 0:03:12]} Be6 {[%emt 0:06:54]} 44. Rb5 {[%emt 0:01:56]} Kh7 {[%emt 0:01:26]} 45. Kg2 {[%emt 0:03:03]} Kg7 {[%emt 0:03:23]} 46. Qc3 {[%emt 0:01:24]} Kh7 {[%emt 0:00:47]} 47. Bb2 {[%emt 0:03:39]} Bd8 {[%emt 0:03:35]} 48. Ba3 {[%emt 0:01:55]} Bb6 {[%emt 0:00:22]} 49. Kh2 {[%emt 0:00:48]} Kg8 {[%emt 0:00:48]} 50. Qc2 {[%emt 0:02:37]} Kh7 {[%emt 0:01:26]} 51. Kg1 {[%emt 0:04:42]} Kg7 {[%emt 0:00:47]} 52. Bc1 {[%emt 0:00:56]} Kg8 {[%emt 0:01:26]} 53. Bg5 {[%emt 0:02:20]} Kh7 {[%emt 0:01:39]} 1/2-1/2

[Event "WJCC U20 Open 2019"]
[Site "New Delhi"]
[Date "2019.10.17"]
[Round "4.31"]
[White "Winkelman, Albert"]
[Black "Rajdeep Sarkar"]
[Result "1-0"]
[ECO "B67"]
[WhiteElo "2143"]
[BlackElo "2384"]
[Annotator "NA"]
[PlyCount "93"]
[EventDate "2019.10.15"]
[EventType "swiss"]
[EventCountry "IND"]
[SourceTitle "playchess.com"]
[Source "ChessBase"]
[SourceQuality "1"]
[TimeControl "40/5400+30:1800+30"]

1. e4 {[%emt 0:00:00]} c5 {[%emt 0:00:00]} 2. Nf3 {[%emt 0:00:00]} d6 {[%emt 0:00:02]} 3. d4 {[%emt 0:00:01]} cxd4 {[%emt 0:00:07]} 4. Nxd4 {[%emt 0:00:14]} Nf6 {[%emt 0:00:04]} 5. Nc3 {[%emt 0:00:18]} Nc6 {[%emt 0:00:05]} 6. Bg5 {[%emt 0:00:28]} e6 {[%emt 0:00:06]} 7. Qd2 {[%emt 0:00:20]} a6 {[%emt 0:00:05]} 8. O-O-O {[%emt 0:00:24]} Bd7 {[%emt 0:00:07]} 9. f3 {[%emt 0:00:46]} Be7 {[%emt 0:00:05]} 10. Kb1 {[%emt 0:02:45]} Qc7 {[%emt 0:00:04]} 11. Nxc6 {[%emt 0:00:17]} Bxc6 {[%emt 0:00:03]} 12. Ne2 {[%emt 0:00:31]} b5 {[%emt 0:01:44]} 13. Nd4 {[%emt 0:00:14]} Bd7 {[%emt 0:00:38]} 14. c3 {[%emt 0:00:18]} Rb8 {[%emt 0:02:45]} 15. Bd3 {[%emt 0:16:59]} a5 {[%emt 0:02:27]} 16. Rhe1 {[%emt 0:01:24]} O-O {[%emt 0:01:50]} 17. Qe2 {[%emt 0:12:46]} b4 {[%emt 0:05:42]} 18. c4 {[%emt 0:00:07]} Rfe8 {[%emt 0:06:49]} 19. e5 {[%emt 0:16:45]} dxe5 {[%emt 0:05:46]} 20. Qxe5 {[%emt 0:00:20]} Bd6 {[%emt 0:10:10]} 21. Qe3 {[%emt 0:03:55]} Nh5 {[%emt 0:01:18]} 22. Ne2 {[%emt 0:03:36]} Be7 {[%emt 0:15:08]} 23. g4 {[%emt 0:05:40]} Nf6 {[%emt 0:08:29]} 24. Bf4 {[%emt 0:17:58]} Qb6 {[%emt 0:00:30]} 25. Ng3 {[%emt 0:06:45]} Bc5 {[%emt 0:03:56]} 26. Qd2 {[%emt 0:01:52]} Ba4 {[%emt 0:07:24]} 27. b3 {[%emt 0:01:06]} Bc6 {[%emt 0:00:02]} 28. Bxb8 {[%emt 0:01:22]} Rxb8 {[%emt 0:00:05]} 29. g5 {[%emt 0:00:09]} Nd7 {[%emt 0:00:59]} 30. Be4 {[%emt 0:00:16]} Nf8 {[%emt 0:02:18]} 31. Bxc6 {[%emt 0:00:18]} Qxc6 {[%emt 0:00:01]} 32. Ne4 {[%emt 0:00:12]} Be7 {[%emt 0:00:01]} 33. Qf4 {[%emt 0:01:39]} Ra8 {[%emt 0:03:32]} 34. Nd6 {[%emt 0:00:28]} Bxd6 {[%emt 0:01:24]} 35. Rxd6 {[%emt 0:00:36]} Qc7 {[%emt 0:00:03]} 36. Rd4 {[%emt 0:00:25]} Qa7 {[%emt 0:00:11]} 37. Qd2 {[%emt 0:05:58]} a4 {[%emt 0:01:04]} 38. Rd8 {[%emt 0:00:15]} Rxd8 {[%emt 0:04:22]} 39. Qxd8 {[%emt 0:00:08]} Qf2 {[%emt 0:00:01]} 40. Qd1 {[%emt 0:00:12]} Qxh2 {[%emt 0:01:02]} 41. c5 {[%emt 0:32:03]} a3 {[%emt 0:32:52]} 42. Qc2 {[%emt 0:00:22]} Qc7 {[%emt 0:00:54]} 43. c6 {[%emt 0:00:29]} e5 {[%emt 0:00:27]} 44. Re4 {[%emt 0:00:35]} Ne6 {[%emt 0:00:44]} 45. Rxb4 {[%emt 0:00:23]} Nd4 {[%emt 0:00:45]} 46. Rb7 {[%emt 0:00:32]} Qc8 {[%emt 0:00:19]} 47. c7 {[%emt 0:00:21]} 1-0

[Event "WJCC U20 Open 2019"]
[Site "New Delhi"]
[Date "2019.10.17"]
[Round "4.32"]
[White "Rakesh Kumar Jena"]
[Black "Milikow, Yoav"]
[Result "1-0"]
[ECO "A48"]
[WhiteElo "2355"]
[BlackElo "2199"]
[Annotator "NA"]
[PlyCount "99"]
[EventDate "2019.10.15"]
[EventType "swiss"]
[EventCountry "IND"]
[SourceTitle "playchess.com"]
[Source "ChessBase"]
[SourceQuality "1"]
[TimeControl "40/5400+30:1800+30"]

1. d4 {[%emt 0:00:00]} Nf6 {[%emt 0:00:00]} 2. Nf3 {[%emt 0:00:00]} g6 {[%emt 0:00:05]} 3. Nc3 {[%emt 0:00:00]} d5 {[%emt 0:00:44]} 4. Bf4 {[%emt 0:00:00]} Bg7 {[%emt 0:00:51]} 5. e3 {[%emt 0:00:02]} O-O {[%emt 0:01:09]} 6. Be2 {[%emt 0:00:07]} Bf5 {[%emt 0:09:16]} 7. h3 {[%emt 0:00:21]} Ne4 {[%emt 0:15:23]} 8. g4 {[%emt 0:06:48]} Nxc3 {[%emt 0:00:25]} 9. bxc3 {[%emt 0:00:02]} Be6 {[%emt 0:07:50]} 10. Rb1 {[%emt 0:00:59]} Qc8 {[%emt 0:00:39]} 11. c4 {[%emt 0:16:24]} c5 {[%emt 0:09:53]} 12. cxd5 {[%emt 0:19:21]} Bxd5 {[%emt 0:00:12]} 13. c4 {[%emt 0:00:17]} Be4 {[%emt 0:00:19]} 14. Bd3 {[%emt 0:00:12]} Bxd3 {[%emt 0:07:15]} 15. Qxd3 {[%emt 0:00:30]} cxd4 {[%emt 0:02:07]} 16. exd4 {[%emt 0:00:40]} f5 {[%emt 0:02:58]} 17. g5 {[%emt 0:12:05]} Nc6 {[%emt 0:02:05]} 18. d5 {[%emt 0:16:52]} Na5 {[%emt 0:00:30]} 19. O-O {[%emt 0:00:30]} Qxc4 {[%emt 0:00:30]} 20. Qxc4 {[%emt 0:00:30]} Nxc4 {[%emt 0:00:30]} 21. Rxb7 {[%emt 0:00:30]} Nb6 {[%emt 0:04:56]} 22. Rd1 {[%emt 0:02:10]} Rfd8 {[%emt 0:02:26]} 23. d6 {[%emt 0:02:31]} exd6 {[%emt 0:00:18]} 24. Rxd6 {[%emt 0:00:25]} Nd5 {[%emt 0:01:09]} 25. Rxd8+ {[%emt 0:01:20]} Rxd8 {[%emt 0:00:01]} 26. Be5 {[%emt 0:00:51]} Bxe5 {[%emt 0:00:38]} 27. Nxe5 {[%emt 0:00:19]} Re8 {[%emt 0:02:28]} 28. Nc6 {[%emt 0:04:24]} Nf4 {[%emt 0:04:19]} 29. Rxa7 {[%emt 0:03:40]} Nxh3+ {[%emt 0:00:56]} 30. Kg2 {[%emt 0:00:02]} Nxg5 {[%emt 0:00:38]} 31. a4 {[%emt 0:01:14]} Re2 {[%emt 0:04:02]} 32. a5 {[%emt 0:02:03]} Ne4 {[%emt 0:01:00]} 33. a6 {[%emt 0:00:39]} Rxf2+ {[%emt 0:00:11]} 34. Kg1 {[%emt 0:00:07]} Ra2 {[%emt 0:02:49]} 35. Ra8+ {[%emt 0:01:28]} Kg7 {[%emt 0:00:01]} 36. a7 {[%emt 0:01:11]} Ra1+ {[%emt 0:01:21]} 37. Kg2 {[%emt 0:00:19]} Ra2+ {[%emt 0:00:06]} 38. Kf3 {[%emt 0:01:07]} Ra3+ {[%emt 0:02:18]} 39. Kf4 {[%emt 0:05:42]} g5+ {[%emt 0:01:27]} 40. Ke5 {[%emt 0:00:07]} g4 {[%emt 0:00:56]} 41. Rb8 {[%emt 0:30:12]} g3 {[%emt 0:30:52]} 42. a8=Q Rxa8 {[%emt 0:00:11]} 43. Rxa8 {[%emt 0:00:28]} g2 {[%emt 0:01:01]} 44. Ra1 {[%emt 0:00:04]} Nd2 {[%emt 0:00:32]} 45. Nd4 {[%emt 0:00:13]} Nf1 {[%emt 0:00:57]} 46. Nf3 {[%emt 0:00:09]} Kh6 {[%emt 0:01:20]} 47. Kf4 {[%emt 0:00:31]} Kh5 {[%emt 0:00:36]} 48. Ra2 {[%emt 0:00:11]} Nd2 {[%emt 0:00:41]} 49. Rxd2 {[%emt 0:00:09]} h6 {[%emt 0:00:05]} 50. Ng1 {[%emt 0:00:11]} 1-0

[Event "WJCC U20 Open 2019"]
[Site "New Delhi"]
[Date "2019.10.17"]
[Round "4.33"]
[White "Donoso Diaz, Sebastian"]
[Black "Nigmatov, Ortik"]
[Result "1-0"]
[ECO "A05"]
[WhiteElo "2203"]
[BlackElo "2494"]
[Annotator "ChessBase"]
[PlyCount "71"]
[EventDate "2019.10.15"]
[EventType "swiss"]
[EventCountry "IND"]
[SourceTitle "playchess.com"]
[Source "ChessBase"]
[SourceQuality "1"]
[TimeControl "40/5400+30:1800+30"]

1. Nf3 {[%emt 0:00:00]} Nf6 {[%emt 0:00:00]} 2. c4 {[%emt 0:00:00]} g6 {[%emt 0:00:00]} 3. Nc3 {[%emt 0:00:00]} Bg7 {[%emt 0:00:00]} 4. e4 {[%emt 0:00:00]} d6 {[%emt 0:00:00]} 5. d4 {[%emt 0:00:05]} O-O {[%emt 0:00:00]} 6. h3 {[%emt 0:00:13]} Qe8 {[%emt 0:00:05]} 7. g4 {[%emt 0:10:59]} b6 {[%emt 0:03:55]} 8. Be3 {[%emt 0:02:32]} Bb7 {[%emt 0:00:46]} 9. Nd2 {[%emt 0:09:13]} Nc6 {[%emt 0:05:30]} 10. d5 {[%emt 0:08:50]} Nb8 {[%emt 0:05:09]} 11. h4 {[%emt 0:14:00]} e6 {[%emt 0:06:36]} 12. h5 {[%emt 0:11:19]} exd5 {[%emt 0:15:33]} 13. exd5 {[%emt 0:00:27]} Nbd7 {[%emt 0:01:22]} 14. Be2 {[%emt 0:00:46]} Nc5 {[%emt 0:04:05]} 15. Qc2 {[%emt 0:02:14]} c6 {[%emt 0:09:01]} 16. g5 {[%emt 0:02:09]} Nfd7 {[%emt 0:01:22]} 17. dxc6 {[%emt 0:02:54]} Bxc6 {[%emt 0:00:07]} 18. Rh4 {[%emt 0:00:08]} a6 {[%emt 0:09:10]} 19. Nde4 {[%emt 0:10:30]} Nxe4 {[%emt 0:07:23]} 20. Nxe4 {[%emt 0:00:07]} Qe5 {[%emt 0:04:43]} 21. O-O-O {[%emt 0:03:29]} Rfe8 {[%emt 0:01:26]} 22. Nxd6 {[%emt 0:04:21]} Re6 {[%emt 0:02:34]} 23. Rhd4 {[%emt 0:00:02]} Bf8 {[%emt 0:09:34]} 24. Nxf7 {[%emt 0:02:00]} Kxf7 {[%emt 0:00:37]} 25. Rxd7+ {[%emt 0:00:02]} Bxd7 {[%emt 0:00:08]} 26. Rxd7+ {[%emt 0:00:04]} Re7 {[%emt 0:01:40]} 27. Rd4 {[%emt 0:01:36]} Bg7 {[%emt 0:07:29]} 28. Bf3 {[%emt 0:01:51]} Rc8 {[%emt 0:04:06]} 29. hxg6+ {[%emt 0:00:02]} Kg8 {[%emt 0:00:15]} 30. Bd5+ {[%emt 0:01:01]} Kh8 {[%emt 0:00:28]} 31. Rh4 {[%emt 0:02:37]} Re6 {[%emt 0:00:08]} 32. Rxh7+ {[%emt 0:04:02]} Kg8 {[%emt 0:00:06]} 33. Bd2 {[%emt 0:01:15]} Rc7 {[%emt 0:01:36]} 34. Rh3 {[%emt 0:02:13]} Kf8 {[%emt 0:01:24]} 35. Rf3+ {[%emt 0:00:42]} Ke8 {[%emt 0:00:37]} 36. Bxe6 {[%emt 0:00:45]} 1-0

[Event "WJCC U20 Open 2019"]
[Site "New Delhi"]
[Date "2019.10.17"]
[Round "4.34"]
[White "Vykouk, Jan"]
[Black "Cansun, Can Alp"]
[Result "1-0"]
[ECO "B42"]
[WhiteElo "2468"]
[BlackElo "2199"]
[Annotator "ChessBase"]
[PlyCount "101"]
[EventDate "2019.10.15"]
[EventType "swiss"]
[EventCountry "IND"]
[SourceTitle "playchess.com"]
[Source "ChessBase"]
[SourceQuality "1"]
[TimeControl "40/5400+30:1800+30"]

1. e4 {[%emt 0:00:00]} c5 {[%emt 0:00:00]} 2. Nf3 {[%emt 0:00:00]} e6 {[%emt 0:00:00]} 3. d4 {[%emt 0:00:00]} cxd4 {[%emt 0:00:00]} 4. Nxd4 {[%emt 0:00:00]} a6 {[%emt 0:00:00]} 5. Bd3 {[%emt 0:00:00]} Nf6 {[%emt 0:00:00]} 6. O-O {[%emt 0:00:05]} Qc7 {[%emt 0:00:01]} 7. Qe2 {[%emt 0:00:16]} d6 {[%emt 0:00:13]} 8. f4 {[%emt 0:00:18]} Nbd7 {[%emt 0:00:16]} 9. c4 {[%emt 0:00:25]} Be7 {[%emt 0:00:42]} 10. Nc3 {[%emt 0:00:07]} b6 {[%emt 0:07:26]} 11. Bd2 {[%emt 0:00:54]} Bb7 {[%emt 0:00:53]} 12. b4 {[%emt 0:00:24]} O-O {[%emt 0:10:56]} 13. a3 {[%emt 0:00:06]} Rfe8 {[%emt 0:01:12]} 14. Nf3 {[%emt 0:02:40]} a5 {[%emt 0:08:28]} 15. Rae1 {[%emt 0:02:56]} axb4 {[%emt 0:03:09]} 16. axb4 {[%emt 0:00:06]} d5 {[%emt 0:02:48]} 17. cxd5 {[%emt 0:00:05]} exd5 {[%emt 0:00:38]} 18. e5 {[%emt 0:06:56]} Bxb4 {[%emt 0:03:45]} 19. Nb5 {[%emt 0:00:13]} Bc5+ {[%emt 0:00:33]} 20. Be3 {[%emt 0:00:16]} Qb8 {[%emt 0:04:25]} 21. Bxc5 {[%emt 0:12:41]} Nxc5 {[%emt 0:04:09]} 22. Nd6 {[%emt 0:00:16]} Qxd6 {[%emt 0:15:06]} 23. exd6 {[%emt 0:00:15]} Rxe2 {[%emt 0:00:05]} 24. Bxe2 {[%emt 0:00:06]} Rd8 {[%emt 0:00:05]} 25. Bb5 {[%emt 0:02:13]} Nfe4 {[%emt 0:01:09]} 26. Nd4 {[%emt 0:01:30]} Rxd6 {[%emt 0:01:07]} 27. Ra1 {[%emt 0:00:41]} h5 {[%emt 0:01:56]} 28. Ra7 {[%emt 0:02:29]} Kh7 {[%emt 0:04:00]} 29. Be2 {[%emt 0:03:51]} Kg6 {[%emt 0:04:52]} 30. Ra3 {[%emt 0:02:19]} Bc8 {[%emt 0:03:58]} 31. f5+ {[%emt 0:01:01]} Kh6 {[%emt 0:01:32]} 32. Ra8 {[%emt 0:00:09]} Rd8 {[%emt 0:00:44]} 33. Rb1 {[%emt 0:00:54]} Kg5 {[%emt 0:04:26]} 34. g3 {[%emt 0:09:19]} Nd7 {[%emt 0:09:42]} 35. h4+ {[%emt 0:10:32]} Kh6 {[%emt 0:02:08]} 36. Ba6 {[%emt 0:00:47]} Nd6 {[%emt 0:00:33]} 37. Nb5 {[%emt 0:00:49]} Nxf5 {[%emt 0:04:10]} 38. Rxc8 {[%emt 0:00:14]} Rf8 {[%emt 0:00:25]} 39. Kf2 {[%emt 0:01:35]} g5 {[%emt 0:00:19]} 40. hxg5+ {[%emt 0:00:34]} Kxg5 {[%emt 0:00:03]} 41. Rxf8 {[%emt 0:30:11]} Nxf8 {[%emt 0:30:05]} 42. Nc3 {[%emt 0:00:10]} h4 {[%emt 0:00:43]} 43. gxh4+ {[%emt 0:00:10]} Nxh4 {[%emt 0:00:09]} 44. Nxd5 {[%emt 0:00:19]} Ne6 {[%emt 0:00:07]} 45. Rxb6 {[%emt 0:00:23]} Ng6 {[%emt 0:00:07]} 46. Bc8 {[%emt 0:01:07]} Nd4 {[%emt 0:00:17]} 47. Ke3 {[%emt 0:01:39]} Nf5+ {[%emt 0:00:12]} 48. Bxf5 {[%emt 0:00:12]} Kxf5 {[%emt 0:00:02]} 49. Rb5 {[%emt 0:00:50]} Ne5 {[%emt 0:00:20]} 50. Nf4 {[%emt 0:00:21]} f6 {[%emt 0:00:14]} 51. Nd3 {[%emt 0:00:05]} 1-0

[Event "WJCC U20 Open 2019"]
[Site "New Delhi"]
[Date "2019.10.17"]
[Round "4.35"]
[White "Muradli, Mahammad"]
[Black "Vatsal Singhania"]
[Result "0-1"]
[ECO "D44"]
[WhiteElo "2459"]
[BlackElo "2157"]
[Annotator "ChessBase"]
[PlyCount "66"]
[EventDate "2019.10.15"]
[EventType "swiss"]
[EventCountry "IND"]
[SourceTitle "playchess.com"]
[Source "ChessBase"]
[SourceQuality "1"]
[TimeControl "40/5400+30:1800+30"]

1. d4 Nf6 2. c4 e6 3. Nf3 d5 4. Nc3 c6 5. Bg5 dxc4 6. e4 b5 7. e5 h6 8. Bh4 g5 9. Nxg5 hxg5 10. Bxg5 Be7 11. exf6 Bxf6 12. Bxf6 Qxf6 13. g3 Na6 14. Bg2 Bb7 15. a4 O-O-O 16. axb5 cxb5 17. Bxb7+ Kxb7 18. Nxb5 Nb4 19. O-O Nc6 20. Qe2 Qh6 21. f3 Rd5 22. b3 Rxb5 23. bxc4 Nxd4 24. Qa2 Qe3+ 25. Kh1 Rbh5 26. Qxa7+ Kc8 27. Qa8+ Kc7 28. Qa7+ Kd8 29. Qb8+ Ke7 30. Qb7+ Kf6 31. Ra2 Qd3 32. Qb1 Qxb1 33. Rxb1 Nxf3 0-1

[Event "WJCC U20 Open 2019"]
[Site "New Delhi"]
[Date "2019.10.17"]
[Round "4.36"]
[White "Maltezeanu, Stefan"]
[Black "Tica, Sven"]
[Result "1/2-1/2"]
[ECO "B15"]
[WhiteElo "2102"]
[BlackElo "2418"]
[Annotator "NA"]
[PlyCount "159"]
[EventDate "2019.10.15"]
[EventType "swiss"]
[EventCountry "IND"]
[SourceTitle "playchess.com"]
[Source "ChessBase"]
[SourceQuality "1"]
[TimeControl "40/5400+30:1800+30"]

1. e4 {[%emt 0:00:00]} c6 {[%emt 0:00:00]} 2. d4 {[%emt 0:00:00]} d5 {[%emt 0:00:00]} 3. Nd2 {[%emt 0:00:00]} dxe4 {[%emt 0:00:00]} 4. Nxe4 {[%emt 0:00:04]} Nf6 {[%emt 0:00:00]} 5. Nxf6+ {[%emt 0:00:04]} exf6 {[%emt 0:00:00]} 6. c3 {[%emt 0:00:04]} Bf5 {[%emt 0:00:04]} 7. Bd3 {[%emt 0:02:54]} Bxd3 {[%emt 0:00:26]} 8. Qxd3 {[%emt 0:00:06]} Bd6 {[%emt 0:00:06]} 9. Ne2 {[%emt 0:00:09]} O-O {[%emt 0:00:20]} 10. O-O {[%emt 0:00:09]} Re8 {[%emt 0:00:45]} 11. Ng3 {[%emt 0:03:40]} Nd7 {[%emt 0:02:34]} 12. Be3 {[%emt 0:04:14]} Nf8 {[%emt 0:04:02]} 13. Rfe1 {[%emt 0:01:44]} Qd7 {[%emt 0:01:38]} 14. Rad1 {[%emt 0:11:13]} Rad8 {[%emt 0:01:50]} 15. Re2 {[%emt 0:17:45]} Ne6 {[%emt 0:01:17]} 16. Rde1 {[%emt 0:10:05]} g6 {[%emt 0:05:12]} 17. d5 {[%emt 0:04:50]} Bxg3 {[%emt 0:05:04]} 18. hxg3 {[%emt 0:00:18]} Qxd5 {[%emt 0:00:33]} 19. Qxd5 {[%emt 0:00:06]} Rxd5 {[%emt 0:00:07]} 20. Bxa7 {[%emt 0:01:15]} Ra8 {[%emt 0:00:19]} 21. Bd4 {[%emt 0:03:07]} Nxd4 {[%emt 0:02:56]} 22. Re8+ {[%emt 0:00:34]} Rxe8 {[%emt 0:00:05]} 23. Rxe8+ {[%emt 0:00:04]} Kg7 {[%emt 0:00:06]} 24. cxd4 {[%emt 0:00:12]} Rxd4 {[%emt 0:00:01]} 25. Re2 {[%emt 0:02:17]} f5 {[%emt 0:00:49]} 26. f3 {[%emt 0:00:57]} Kf6 {[%emt 0:00:34]} 27. a3 {[%emt 0:01:27]} Rd3 {[%emt 0:03:58]} 28. Kf2 {[%emt 0:02:42]} h5 {[%emt 0:03:19]} 29. Ke1 {[%emt 0:04:48]} Rd5 {[%emt 0:02:50]} 30. Kf2 {[%emt 0:03:44]} Re5 {[%emt 0:00:59]} 31. Rxe5 {[%emt 0:08:34]} Kxe5 {[%emt 0:00:07]} 32. Ke3 {[%emt 0:00:02]} Kd5 {[%emt 0:01:54]} 33. Kd3 {[%emt 0:01:38]} g5 {[%emt 0:08:21]} 34. b3 {[%emt 0:06:55]} Kc5 {[%emt 0:12:33]} 35. Ke3 {[%emt 0:02:55]} Kd5 {[%emt 0:05:15]} 36. Kd3 {[%emt 0:00:07]} Ke5 {[%emt 0:01:43]} 37. Ke3 {[%emt 0:00:28]} f6 {[%emt 0:00:30]} 38. a4 {[%emt 0:07:00]} c5 {[%emt 0:03:05]} 39. a5 {[%emt 0:01:17]} Kd6 {[%emt 0:05:37]} 40. Kd3 {[%emt 0:00:25]} Kd5 {[%emt 0:00:07]} 41. Kc3 {[%emt 0:31:31]} g4 {[%emt 0:34:07]} 42. f4 {[%emt 0:00:00]} Ke4 {[%emt 0:00:00]} 43. Kc4 {[%emt 0:00:00]} h4 {[%emt 0:00:00]} 44. gxh4 {[%emt 0:00:00]} Kxf4 {[%emt 0:00:00]} 45. Kxc5 {[%emt 0:00:00]} Ke5 {[%emt 0:00:00]} 46. h5 {[%emt 0:00:00]} f4 {[%emt 0:00:00]} 47. h6 {[%emt 0:00:00]} f3 {[%emt 0:00:00]} 48. gxf3 {[%emt 0:00:00]} g3 {[%emt 0:00:00]} 49. h7 {[%emt 0:00:00]} g2 {[%emt 0:00:00]} 50. h8=Q {[%emt 0:00:00]} g1=Q+ {[%emt 0:00:00]} 51. Kb4 {[%emt 0:00:00]} Qd4+ {[%emt 0:00:00]} 52. Ka3 {[%emt 0:00:00]} Qc5+ {[%emt 0:00:00]} 53. Kb2 Qf2+ {[%emt 0:00:00]} 54. Ka3 {[%emt 0:00:00]} Qc5+ {[%emt 0:00:00]} 55. Kb2 {[%emt 0:00:00]} Qf2+ {[%emt 0:00:00]} 56. Ka3 {[%emt 0:00:00]} Qxf3 {[%emt 0:00:00]} 57. Qe8+ {[%emt 0:00:00]} Kd6 {[%emt 0:00:00]} 58. Qd8+ {[%emt 0:00:00]} Kc6 {[%emt 0:00:00]} 59. Qe8+ {[%emt 0:00:00]} Kc5 {[%emt 0:00:00]} 60. Qe7+ {[%emt 0:00:00]} Kb5 {[%emt 0:00:00]} 61. Qb4+ {[%emt 0:00:51]} Kc6 {[%emt 0:00:00]} 62. Qc4+ {[%emt 0:02:05]} Kd6 {[%emt 0:00:00]} 63. a6 {[%emt 0:01:05]} bxa6 {[%emt 0:00:00]} 64. Qxa6+ {[%emt 0:00:08]} Ke7 {[%emt 0:00:00]} 65. Qa7+ {[%emt 0:00:12]} Kf8 {[%emt 0:00:00]} 66. Qc5+ {[%emt 0:00:12]} Kg8 {[%emt 0:00:00]} 67. Qc8+ {[%emt 0:01:06]} Kg7 {[%emt 0:00:00]} 68. Qd7+ {[%emt 0:00:08]} Kh6 {[%emt 0:00:00]} 69. Qe6 {[%emt 0:00:46]} Kg5 {[%emt 0:00:00]} 70. Qe7 {[%emt 0:01:13]} Kg4 {[%emt 0:00:00]} 71. Qg7+ {[%emt 0:00:19]} Kh3 {[%emt 0:00:00]} 72. Qh6+ {[%emt 0:00:21]} Kg2 {[%emt 0:00:00]} 73. Qg6+ {[%emt 0:00:18]} Kh2 {[%emt 0:00:00]} 74. Qh6+ {[%emt 0:00:14]} Kg1 {[%emt 0:00:00]} 75. Qg6+ {[%emt 0:00:07]} Kf1 {[%emt 0:00:00]} 76. Qb1+ {[%emt 0:00:11]} Kf2 {[%emt 0:00:00]} 77. Qc2+ {[%emt 0:00:06]} Kg3 {[%emt 0:00:00]} 78. Qg6+ {[%emt 0:00:06]} Kf2 {[%emt 0:00:00]} 79. Qc2+ {[%emt 0:00:04]} Kg3 {[%emt 0:00:00]} 80. Qg6+ {[%emt 0:00:02]} 1/2-1/2

[Event "WJCC U20 Open 2019"]
[Site "New Delhi"]
[Date "2019.10.17"]
[Round "4.37"]
[White "O`Donnell, Conor"]
[Black "Dahanayake, Isara Banidu"]
[Result "1-0"]
[ECO "E86"]
[WhiteElo "2345"]
[BlackElo "1771"]
[Annotator "NA"]
[PlyCount "71"]
[EventDate "2019.10.15"]
[EventType "swiss"]
[EventCountry "IND"]
[SourceTitle "playchess.com"]
[Source "ChessBase"]
[SourceQuality "1"]
[TimeControl "40/5400+30:1800+30"]

1. d4 Nf6 2. c4 g6 3. f3 Bg7 4. e4 d6 5. Nc3 O-O 6. Be3 e5 7. Nge2 c6 8. Qd2 Nbd7 9. d5 cxd5 10. cxd5 a6 11. g4 h5 12. g5 Nh7 13. Nc1 f6 14. gxf6 Qxf6 15. Be2 Rf7 16. Nd3 Qe7 17. O-O-O Ndf8 18. Na4 Rb8 19. Nb6 Qd8 20. Rhg1 Kh8 21. Kb1 Bf6 22. Qb4 g5 23. Rc1 Be7 24. Nxc8 Rxc8 25. Qxb7 Ra8 26. Rc6 Ng6 27. Rgc1 Rf8 28. Rxa6 Rxa6 29. Qxa6 Qb8 30. Qa7 Qxa7 31. Bxa7 Nf4 32. Nxf4 gxf4 33. b4 Kg7 34. b5 Nf6 35. b6 Nd7 36. b7 1-0

[Event "WJCC U20 Open 2019"]
[Site "New Delhi"]
[Date "2019.10.17"]
[Round "4.38"]
[White "Jablonicky, Martin"]
[Black "De Silva, L M S T"]
[Result "1-0"]
[ECO "A05"]
[WhiteElo "2333"]
[BlackElo "1879"]
[Annotator "NA"]
[PlyCount "85"]
[EventDate "2019.10.15"]
[EventType "swiss"]
[EventCountry "IND"]
[SourceTitle "playchess.com"]
[Source "ChessBase"]
[SourceQuality "1"]
[TimeControl "40/5400+30:1800+30"]

1. Nf3 Nf6 2. b3 g6 3. Bb2 Bg7 4. g3 b6 5. Bg2 Bb7 6. O-O c5 7. c4 O-O 8. Nc3 d6 9. e3 Nbd7 10. d4 a6 11. d5 b5 12. Qc2 Nb6 13. Nd2 Qd7 14. e4 Rfb8 15. Rae1 bxc4 16. bxc4 Ng4 17. Nd1 Qa4 18. Qxa4 Nxa4 19. Bxg7 Kxg7 20. f4 Bc8 21. h3 Nh6 22. g4 Nb2 23. Nc3 f6 24. Re3 Nf7 25. Rfe1 Bd7 26. Bf1 g5 27. e5 fxe5 28. fxe5 Nxe5 29. Nf3 Nxf3+ 30. Rxf3 Re8 31. Ne4 Kh6 32. Rb3 Na4 33. Rb7 Rad8 34. Bd3 Bc8 35. Rc7 Nb2 36. Bf1 Rd7 37. Rc6 Rf8 38. Nxc5 Ra7 39. Rb1 Kg7 40. Rxc8 Rxc8 41. Ne6+ Kf6 42. Rxb2 h5 43. Bd3 1-0